Workbook

Sheet شهر 1
A1: الرقم | B1: الاســـــــــــــم | C1: العنوان | D1: التاريخ | E1: نوع العمليه | F1: العميل | G1: المبلغ | H1: المدفوع | I1: الباقي | K1: =H41 -> 3600 | M1: الباقي | N1: =I41 -> 3750 | P1: الوارد
B2: السعيد شعبان الشابوري | C2: قريه السعوديه - تمي الامديد | D2: 2022-01-02T15:02:02 | E2: تقرير تعليه | F2: مصطفى عوض | G2: 650 | H2: 650 | P2: المبلغ | Q2: التاريخ | R2: الاسم
B3: السعيد شعبان الشابوري | C3: قريه السعوديه - تمي الامديد | D3: 2022-01-02T15:02:31 | E3: وثيقه تأمين | F3: مصطفى عوض | G3: 700 | H3: 450
B4: محمد السيد عوض | C4: الصلاحات - تمي | D4: 2022-01-02T15:10:39 | E4: رسومات استشاري | F4: م ايمان - تمي الامديد | G4: 200
B5: رمضان احمد عبد الحليم | C5: الربع - تمي الامديد | D5: 2022-01-04T11:51:27 | E5: تقرير تعليه | F5: م نجاح - تمي الامديد | G5: 650 | H5: 650 | P5: 500 | Q5: 2021-09-26 | R5: ا كمال - مديونيه قديمه (باقي 1000)
B6: رمضان احمد عبد الحليم | C6: الربع - تمي الامديد | D6: 2022-01-04T11:52:27 | E6: وثيقه تأمين | F6: م نجاح - تمي الامديد | G6: 700 | H6: 350 | P6: 1000 | Q6: 2021-09-27 | R6: احمد لبده من حساب 5 شهادات صلاحيه
B7: محمد علي عبد البديع | C7: الرمزيه - السنبلاوين | D7: 2022-01-05T10:18:18 | E7: تقرير تعليه | F7: م هانم | G7: 650 | P7: 5000 | Q7: 2021-10-03 | R7: مهندس عبد اللطيف من 7150
B8: فرج السيد ناجي حامد | C8: ميت أبو الحسين - اجا | D8: 2022-01-05T10:18:50 | E8: صلاحيه مرافق | F8: م ضياء الجوهري | G8: 550 | P8: 2500 | Q8: 2021-10-18 | R8: مهندس إبراهيم مصباح من 3150
B9: عبد العزيز جوده | C9: كفر ميت غراب - السنبلاوين | D9: 2022-01-05T10:22:31 | E9: تقرير تعليه | F9: م محمد عزت صالح | G9: 650 | P9: 1000 | Q9: 2021-11-01 | R9: من حساب أستاذ كمال ( هدم )
B10: رضا محمد إبراهيم إسماعيل | C10: الحصاينه - السنبلاوين | D10: 2022-01-05T10:23:20 | E10: صلاحيه مرافق | F10: محمد زيدان | G10: 550 | P10: 2500 | Q10: 2021-12-16 | R10: من حساب احمد لبده ( 2 مرافق و 2 هدم)
B11: عبد الحليم ممدوح رمضان محمد | C11: كفر العنانيه - السنبلاوين | D11: 2022-01-05T10:25:15 | E11: صلاحيه مرافق | F11: إبراهيم مصباح | G11: 550
B12: علي علي عوض الله | C12: طوخ الأقلام - السنبلاوين | D12: 2022-01-09T10:32:57 | E12: اشراف | F12: م اسلام - فرحات | G12: 1500 | H12: 1500
P17: ايداعات البنك
P18: 8000 | Q18: 2021-11-07 | R18: من فلوس الورق
P19: 6000 | Q19: 2021-11-07 | R19: من فلوس م محمد حماد
P20: 13200 | Q20: 2021-11-07 | R20: من فلوس الفيزا
P21: 2800 | Q21: 2021-11-07 | R21: من فلوس خاصه بيا
P22: =SUM(P18:P21) -> 30000 | R22: اجمالي الإيداع
G41: =SUM(G2:G40) -> 7350 | H41: =SUM(H2:H40) -> 3600 | I41: =G41-H41 -> 3750

Sheet شهر 12
A1: الرقم | B1: الاســـــــــــــم | C1: العنوان | D1: التاريخ | E1: نوع العمليه | F1: العميل | G1: المبلغ | H1: المدفوع | I1: الباقي | K1: =H41 -> 17700 | M1: الباقي | N1: =I41 -> 8250 | P1: الوارد
B2: ضياء الدين مصبح احمد عامر | C2: الحجايزه - السنبلاوين | D2: 2021-12-01T10:54:44 | E2: تقرير تعليه | F2: م احمد حسن | G2: 650 | H2: 650 | I2: =G2-H2 -> 0 | P2: المبلغ | Q2: التاريخ | R2: الاسم
B3: عرفات علي سليمان | C3: ظفر - تمي الامديد | D3: 2021-12-05T15:03:10 | E3: تقرير تعليه | F3: م ايمان - تمي الامديد | G3: 650 | H3: 650 | I3: =G3-H3 -> 0
B4: الجمعيه الخيريه | C4: كفر الصلاحات - بني عبيد | D4: 2021-12-05T15:04:25 | E4: تقرير تعليه | F4: م ايمان - تمي الامديد | G4: 650 | H4: 650 | I4: 0
B5: عبد الله إبراهيم الطنطاوي | C5: ظفر - تمي الامديد | D5: 2021-12-05T15:05:21 | E5: تقرير تعليه | F5: م ايمان - تمي الامديد | G5: 650 | H5: 650 | I5: 0 | P5: 500 | Q5: 2021-09-26 | R5: ا كمال - مديونيه قديمه (باقي 1000)
B6: صفاء عبد المالك محمد سالم | C6: ظفر - تمي الامديد | D6: 2021-12-05T15:06:44 | E6: تقرير تعليه | F6: م ايمان - تمي الامديد | G6: 650 | H6: 650 | I6: 0 | P6: 1000 | Q6: 2021-09-27 | R6: احمد لبده من حساب 5 شهادات صلاحيه
B7: إبراهيم صبح | C7: برهمتوش - السنبلاوين | D7: 2021-12-06T10:17:40 | E7: اشراف | F7: مكتب | G7: 1500 | H7: 1500 | I7: 0 | P7: 5000 | Q7: 2021-10-03 | R7: مهندس عبد اللطيف من 7150
B8: سعد محمد العوضي الامام | C8: قرقيره - السنبلاوين | D8: 2021-12-07T13:17:50 | E8: تقرير تعليه | F8: م اسلام نافع | G8: 650 | H8: 650 | I8: 0 | P8: 2500 | Q8: 2021-10-18 | R8: مهندس إبراهيم مصباح من 3150
B9: سلفيات | C9: محاميه طرف أ احمد جاد المحامي | D9: 2021-12-09T13:41:49 | E9: سلفيات | F9: ا احمد جاد | G9: 100 | I9: 100 | P9: 1000 | Q9: 2021-11-01 | R9: من حساب أستاذ كمال ( هدم )
B10: رضا ياسين بدران | C10: عزبه عيسى - السنبلاوين | D10: 2021-12-09T13:44:03 | E10: صلاحيه | F10: م هاني | G10: 550 | H10: 550 | I10: 0 | P10: 2500 | Q10: 2021-12-16 | R10: من حساب احمد لبده ( 2 مرافق و 2 هدم)
B11: محسن قاسم حسانين | C11: عزبه عيسى - السنبلاوين | D11: 2021-12-09T13:44:50 | E11: صلاحيه | F11: م هاني | G11: 550 | H11: 550 | I11: 0
B12: هاني السيد عبد العزيز | C12: كفر الروك - السنبلاوين | D12: 2021-12-12T10:36:36 | E12: اشراف هدم | F12: م إبراهيم الجدامي | G12: 600 | H12: 600 | I12: 0
B13: علي حجازي رمضان عزام | C13: كفر عزام - السنبلاوين | D13: 2021-12-12T10:37:47 | E13: اشراف هدم | F13: مكتب | G13: 650 | I13: 650
B14: ناديه عاطف | C14: الزريقي - السنبلاوين | D14: 2021-12-12T10:57:32 | E14: اشراف | F14: مكتب | G14: 1550 | H14: 1550 | I14: 0
B15: إبراهيم محمود حسين | C15: الشرقين - كفر سعد - السنبلاوين | D15: 2021-12-12T11:01:55 | E15: صلاحيه مرافق | F15: م احمد حسن | G15: 550 | H15: 550 | I15: 0
B16: مصبح عبد المقصود إبراهيم شحاته | C16: غزاله - السنبلاوين | D16: 2021-12-12T11:05:53 | E16: صلاحيه مرافق | F16: م إبراهيم فؤاد | G16: 550 | H16: 550 | I16: 0
B17: سعاد عبد الحميد درويش إسماعيل | C17: غزاله - السنبلاوين | D17: 2021-12-12T11:07:03 | E17: صلاحيه مرافق | F17: م إبراهيم فؤاد | G17: 550 | H17: 550 | I17: 0 | P17: ايداعات البنك
B18: عبد الجواد الشوادفي العوضي | C18: الحجايزه - السنبلاوين | D18: 2021-12-12T11:31:49 | E18: تقرير تعليه | F18: م احمد حسن | G18: 650 | H18: 650 | I18: 0 | P18: 8000 | Q18: 2021-11-07 | R18: من فلوس الورق
B19: وصفي عبد المجيد علي | C19: كفر قنصوه - السنبلاوين | D19: 2021-12-12T11:39:36 | E19: صلاحيه مرافق | F19: مكتب | G19: 550 | I19: 550 | P19: 6000 | Q19: 2021-11-07 | R19: من فلوس م محمد حماد
B20: ربيع احمد عبده مصطفى | C20: برهمتوش - السنبلاوين | D20: 2021-12-12T11:42:24 | E20: صلاحيه مرافق | F20: مكتب | G20: 550 | I20: 550 | P20: 13200 | Q20: 2021-11-07 | R20: من فلوس الفيزا
B21: محمد نبيل العدروسي عطوان | C21: شبراهور - السنبلاوين | D21: 2021-12-12T11:42:44 | E21: صلاحيه مرافق | F21: مكتب | G21: 550 | I21: 550 | P21: 2800 | Q21: 2021-11-07 | R21: من فلوس خاصه بيا
B22: نبيل ذكي نصر إبراهيم | C22: الحصاينه - السنبلاوين | D22: 2021-12-12T11:43:14 | E22: سلامه انشائيه - محل | F22: مكتب | G22: 650 | I22: 650 | P22: =SUM(P18:P21) -> 30000 | R22: اجمالي الإيداع
B23: رحاب السعيد عبد النبي | C23: الحجايزه - السنبلاوين | D23: 2021-12-14T11:36:52 | E23: صلاحيه مرافق | F23: اميره يوسف | G23: 530 | H23: 530 | I23: 0
B24: جعفر حسن محمد حسن | C24: الحجايزه - السنبلاوين | D24: 2021-12-14T11:58:51 | E24: اشراف هدم | F24: اميره يوسف | G24: 620 | H24: 620 | I24: 0
B25: سماح الشربيني احمد محمد | C25: كفر عبد الأمين - برهمتوش | D25: 2021-12-16T15:38:29 | E25: صلاحيه مرافق | F25: احمد لبده | G25: 550 | H25: 550 | I25: 0
B26: عبد النبي أبو زيد محمد خطاب | C26: قرقيره - السنبلاوين | D26: 2021-12-16T15:39:26 | E26: صلاحيه مرافق | F26: احمد لبده | G26: 550 | H26: 550 | I26: 0
B27: فرج يوسف عبده عرفات | C27: طنبول الكبرى - السنبلاوين | D27: 2021-12-16T15:40:04 | E27: اشراف هدم | F27: احمد لبده | G27: 850 | H27: 150 | I27: 700
B28: ناجي إبراهيم السيد يونس | C28: قرقيره - السنبلاوين | D28: 2021-12-16T15:40:34 | E28: اشراف هدم | F28: احمد لبده | G28: 850 | H28: 800 | I28: 50
B29: إبراهيم صبح | C29: عزبه داوود - تمي الامديد | D29: 2021-12-16T16:14:58 | E29: تقرير تعديل و اضافه | F29: مكتب | G29: 650 | I29: 650
B30: هاني محمد عبد الفتاح ض | C30: بشمس - السنبلاوين | D30: 2021-12-19T13:53:48 | E30: اشراف | F30: مكتب | G30: 1500 | H30: 1500 | I30: 0
B31: ام محمد محمد علي نعناع | C31: عزبة الفونس - كفر بدوي - السنبلاوين | D31: 2021-12-21T11:13:31 | E31: صلاحيه مرافق | F31: مكتب | G31: 550 | I31: 550
B32: السواح محمد السواح | C32: منشاة الاخوه - اجا | D32: 2021-12-26T16:12:24 | E32: تقرير تعليه | F32: ضياء الجوهري | G32: 650 | H32: 650 | I32: 0
B33: شعبان أبو الفتوح محمد | C33: الزهيري - بني عبيد | D33: 2021-12-26T16:14:07 | E33: تقرير تعليه | F33: م ايمان - تمي الامديد | G33: 650 | H33: 650 | I33: 0
B34: طه عبد الروؤف طه | C34: الصلاحات - بني عبيد | D34: 2021-12-27T12:34:46 | E34: تقرير تعليه | F34: م ايمان - تمي الامديد | G34: 650 | H34: 100 | I34: 550
B35: فتحي محمد محمد هاشم | C35: الصلاحات - بني عبيد | D35: 2021-12-27T12:35:17 | E35: تقرير تعليه | F35: م ايمان - تمي الامديد | G35: 650 | I35: 650
B36: نبيل احمد جمعه | C36: الحجايزه - السنبلاوين | D36: 2021-12-30T11:24:19 | E36: تقرير تعليه | F36: م احمد حسن | G36: 650 | H36: 650 | I36: 0
B37: طارق عبد العزيز السعيد | C37: السنبلاوين | D37: 2021-12-30T11:25:24 | E37: اشراف | F37: مكتب | G37: 1500 | I37: 1500
B38: خديجه إبراهيم محمد الاسناوي | C38: السنبلاوين | D38: 2021-12-30T11:26:11 | E38: صلاحيه مرافق | F38: مكتب | G38: 550 | I38: 550
I39: 0
I40: 0
G41: =SUM(G2:G40) -> 25950 | H41: =SUM(H2:H40) -> 17700 | I41: =SUM(I2:I40) -> 8250

Sheet شهر 11
A1: الرقم | B1: الاســـــــــــــم | C1: العنوان | D1: التاريخ | E1: نوع العمليه | F1: العميل | G1: المبلغ | H1: المدفوع | I1: الباقي | K1: =H41 -> 26490 | M1: الباقي | N1: =I41 -> 1200 | P1: الوارد
B2: محمد العوضي سعيد | C2: برهمتوش - السنبلاوين | D2: 2021-11-01T10:56:23 | E2: صلاحيه مرافق | F2: م إبراهيم مصباح | G2: 550 | H2: 550 | I2: =G2-H2 -> 0 | P2: المبلغ | Q2: التاريخ | R2: الاسم
B3: وليد هريدي محمد عبد اللطيف | C3: كفر العنانيه - السنبلاوين | D3: 2021-11-01T10:57:08 | E3: صلاحيه مرافق | F3: م إبراهيم مصباح | G3: 550 | H3: 550 | I3: =G3-H3 -> 0 | P3: 2500 | Q3: 2021-09-20 | R3: مهندس حسن من الحساب
B4: محمود السعيد احمد سالم | C4: أبو داود - تمي الامديد | D4: 2021-11-01T10:57:49 | E4: صلاحيه مرافق | F4: م وليد نجم | G4: 550 | H4: 550 | I4: 0 | P4: 700 | Q4: 2021-09-22 | R4: إبراهيم مصباح سداد مديونيه - سلفيات
B5: ناهد الباز عبد الفتاح بدوي | C5: ديو الوسطى - السنبلاوين | D5: 2021-11-03T13:55:12 | E5: شهاده اشراف | F5: م محمد زيدان | G5: 1500 | H5: 1500 | I5: 0 | P5: 500 | Q5: 2021-09-26 | R5: ا كمال - مديونيه قديمه (باقي 1000)
B6: ولاء رضا شعبان | C6: عزبة النحالين - طهواي - السنبلاوين | D6: 2021-11-04T16:24:37 | E6: صلاحيه مرافق | F6: ا كمال | G6: 550 | H6: 550 | I6: 0 | P6: 1000 | Q6: 2021-09-27 | R6: احمد لبده من حساب 5 شهادات صلاحيه
B7: رشا محمد السعيد | C7: طهواي - السنبلاوين | D7: 2021-11-04T16:24:57 | E7: صلاحيه مرافق | F7: ا كمال | G7: 550 | H7: 550 | I7: 0 | P7: 5000 | Q7: 2021-10-03 | R7: مهندس عبد اللطيف من 7150
B8: همام سامي سعد | C8: عزبة النحالين - طهواي - السنبلاوين | D8: 2021-11-04T16:25:04 | E8: صلاحيه مرافق | F8: ا كمال | G8: 550 | H8: 550 | I8: 0 | P8: 2500 | Q8: 2021-10-18 | R8: مهندس إبراهيم مصباح من 3150
B9: ولاء يسري محمد | C9: عزبة النحالين - طهواي - السنبلاوين | D9: 2021-11-04T16:27:15 | E9: صلاحيه مرافق | F9: ا كمال | G9: 550 | H9: 550 | I9: 0 | P9: 1000 | Q9: 2021-11-01 | R9: من حساب أستاذ كمال ( هدم )
B10: نجلاء فتحي الشافعي | C10: طهواي - السنبلاوين | D10: 2021-11-04T16:27:28 | E10: صلاحيه مرافق | F10: ا كمال | G10: 550 | H10: 550 | I10: 0
B11: بشرى عبد اللطيف حسن | C11: طهواي - السنبلاوين | D11: 2021-11-04T16:27:42 | E11: صلاحيه مرافق | F11: ا كمال | G11: 550 | H11: 550 | I11: 0
B12: اصلان عزام اصلان | C12: طهواي - السنبلاوين | D12: 2021-11-07T13:15:52 | E12: صلاحيه مرافق | F12: ا كمال | G12: 550 | H12: 550 | I12: 0
B13: اصلان عزام اصلان | C13: طهواي - السنبلاوين | D13: 2021-11-07T13:15:51 | E13: صلاحيه مرافق | F13: ا كمال | G13: 550 | H13: 550 | I13: 0
B14: محمد نبيه محمد | C14: طهواي - السنبلاوين | D14: 2021-11-07T13:15:48 | E14: صلاحيه مرافق | F14: ا كمال | G14: 550 | H14: 550 | I14: 0
B15: حنان محمود العزب | C15: طهواي - السنبلاوين | D15: 2021-11-07T13:15:50 | E15: صلاحيه مرافق | F15: ا كمال | G15: 550 | H15: 550 | I15: 0
B16: جمال صابر علي جبر | C16: قرقيره - السنبلاوين | D16: 2021-11-14T10:41:09 | E16: اشراف | F16: اسلام نافع | G16: 1500 | H16: 1500 | I16: 0
B17: صلاح السيد عبد الله | C17: السنبلاوين | D17: 2021-11-10 | E17: تبرع صلاحيه | F17: ا كمال | G17: 150 | H17: 150 | I17: 0 | P17: ايداعات البنك
B18: وفائي السيد سالم بهنساوي | C18: السنبلاوين | D18: 2021-11-10 | E18: تبرع صلاحيه | F18: ا كمال | G18: 150 | H18: 150 | I18: 0 | P18: 8000 | Q18: 2021-11-07 | R18: من فلوس الورق
B19: حسن محمد عبد الرحمن | C19: بشمس - السنبلاوين | D19: 2021-11-10 | E19: اشراف هدم | F19: م إبراهيم الجدامي | G19: 700 | H19: 700 | I19: 0 | P19: 6000 | Q19: 2021-11-07 | R19: من فلوس م محمد حماد
B20: هاني السعيد احمد العوضي | C20: طهواي - السنبلاوين | D20: 2021-11-14 | E20: اشراف هدم | F20: ا كمال العطار | G20: 850 | H20: 700 | I20: 150 | P20: 13200 | Q20: 2021-11-07 | R20: من فلوس الفيزا
B21: عزيزه سالم إسماعيل | C21: ميت غريطه - السنبلاوين | E21: اشراف | F21: مكتب | G21: 1500 | H21: 1500 | I21: 0 | P21: 2800 | Q21: 2021-11-07 | R21: من فلوس خاصه بيا
B22: رضا محمد حامد | C22: المقاطعه - السنبلاوين | D22: 2021-11-14T12:00:03 | E22: اشراف | F22: احمد طلبه | G22: 1500 | H22: 1500 | I22: 0 | P22: =SUM(P18:P21) -> 30000 | R22: اجمالي الإيداع
B23: محمد السيد علي سيد احمد | C23: طوخ الأقلام - السنبلاوين | D23: 2021-11-14T15:02:13 | E23: اشراف هدم | F23: م خالد الباز | G23: 850 | H23: 600 | I23: 250
B24: محمد حامد محمد حسين | C24: الشعاله - السنبلاوين | D24: 2021-11-16T12:15:26 | E24: وثيقه تأمين | F24: ا كمال العطار | G24: 900 | H24: 900 | I24: 0
B25: احمد جمال الغريب | C25: برهمتوش - السنبلاوين | D25: 2021-11-16T12:16:21 | E25: صلاحيه مرافق | F25: إبراهيم مصباح | G25: 550 | H25: 550 | I25: 0
B26: هيثم احمد السيد احمد | C26: برهمتوش - السنبلاوين | D26: 2021-11-16T12:16:55 | E26: صلاحيه مرافق | F26: إبراهيم مصباح | G26: 550 | H26: 550 | I26: 0
B27: عادل الششتاوي السعيد | C27: برهمتوش - السنبلاوين | D27: 2021-11-16T12:17:20 | E27: صلاحيه مرافق | F27: إبراهيم مصباح | G27: 550 | H27: 550 | I27: 0
B28: السيد حسانين السيد | C28: كفر الأمير عبد الله - تمي الامديد | D28: 2021-11-21T10:26:05 | E28: تقرير تعليه | F28: م ايمان - تمي الامديد | G28: 650 | H28: 650 | I28: 0
B29: فاطمه حسين محمد سالم | C29: غزاله - السنبلاوين | D29: 2021-11-22T10:43:33 | E29: صلاحيه مرافق | F29: احمد طلبه | G29: 550 | H29: 550 | I29: 0
B30: زينب احمد عبد المجيد | C30: طماي الزهايرة - السنبلاوين | D30: 2021-11-22T13:43:25 | E30: صلاحيه مرافق | F30: مكتب | G30: 550 | H30: 400 | I30: 150
B31: محمد عبد السلام محمد عبدالله | C31: الاورمان - السنبلاوين | D31: 2021-11-23T14:32:51 | E31: صلاحيه مرافق | F31: م فكريه | G31: 550 | H31: 550 | I31: 0
B32: صبحه إبراهيم منصور | C32: الحجايزه - السنبلاوين | D32: 2021-11-23T14:33:46 | E32: صلاحيه مرافق | F32: م اميره يوسف | G32: 530 | H32: 530 | I32: 0
B33: السيد احمد احمد محمد | C33: الحجايزه - السنبلاوين | D33: 2021-11-24T13:15:19 | E33: اشراف | F33: إبراهيم فؤاد | G33: 1500 | H33: 1500 | I33: 0
B34: السعيد السيد السعيد | C34: الحجايزه - السنبلاوين | D34: 2021-11-24T13:16:42 | E34: اشراف | F34: إبراهيم فؤاد | G34: 1500 | H34: 1500 | I34: 0
B35: كامل عبد المعبود عبد الله | C35: ديو الوسطى - السنبلاوين | D35: 2021-11-29T08:04:39 | E35: صلاحيه مرافق | F35: م محمد زيدان | G35: 530 | H35: 530 | I35: 0
B36: سهير محمود يوسف | C36: الحصاينه - السنبلاوين | D36: 2021-11-29T08:05:27 | E36: صلاحيه مرافق | F36: م عمر عبد العزيز | G36: 550 | H36: 550 | I36: 0
B37: عيد إبراهيم شحاته إبراهيم | C37: أبو خضر - الحجايزه - السنبلاوين | D37: 2021-11-29T08:06:32 | E37: صلاحيه مرافق | F37: م احمد حسن | G37: 550 | H37: 550 | I37: 0
B38: محمود طه القزاز | C38: ديو الوسطى - السنبلاوين | D38: 2021-11-29T08:07:13 | E38: صلاحيه مرافق | F38: م محمد زيدان | G38: 530 | H38: 530 | I38: 0
B39: علي محمود محمد علي كل | C39: ميت غراب - السنبلاوين | D39: 2021-11-29T15:20:55 | E39: تقرير تعليه | F39: م محمد عزت | G39: 650 | I39: 650
B40: السيد احمد محمد | C40: الحجايزه - السنبلاوين | D40: 2021-11-29T15:21:33 | E40: تقرير تعليه | F40: م إبراهيم فؤاد | G40: 650 | H40: 650 | I40: 0
G41: =SUM(G2:G40) -> 27690 | H41: =SUM(H2:H40) -> 26490 | I41: =G41-H41 -> 1200

Sheet شهر 10
A1: الرقم | B1: الاســـــــــــــم | C1: العنوان | D1: التاريخ | E1: نوع العمليه | F1: العميل | G1: المبلغ | H1: المدفوع | I1: الباقي | K1: =G43 -> 25420 | M1: الباقي | N1: =I43 -> 400 | P1: الوارد
B2: شرين علي علي احمد | C2: الصلاحات - بني عبيد | D2: 2021-10-03T11:44:30 | E2: وثيقه | F2: م ايمان - تمي | G2: 1100 | H2: 1100 | I2: =G2-H2 -> 0 | P2: المبلغ | Q2: التاريخ | R2: الاسم
B3: شرين علي علي احمد | C3: الصلاحات - بني عبيد | D3: 2021-10-03T11:45:33 | E3: تقرير تعليه واضافه | F3: م ايمان - تمي | G3: 950 | H3: 950 | I3: =G3-H3 -> 0 | P3: 2500 | Q3: 2021-09-20 | R3: مهندس حسن من الحساب
B4: محمد السيد عوض حسن | C4: الصلاحات - بني عبيد | D4: 2021-10-03T12:56:32 | E4: تقرير تعليه | F4: م ايمان - تمي | G4: 650 | H4: 650 | I4: 0 | P4: 700 | Q4: 2021-09-22 | R4: إبراهيم مصباح سداد مديونيه - سلفيات
B5: علاء رجب محمد علي | C5: كفر بدوي - السنبلاوين | D5: 2021-10-04T12:33:40 | E5: تقرير تعليه | F5: م احمد طلبه | G5: 650 | H5: 650 | I5: 0 | P5: 500 | Q5: 2021-09-26 | R5: مديونيه قديمه (باقي 1000)
B6: عبد الله صابر السيد | C6: عزبة مليكة الكبرى - غزاله - السنبلاوين | D6: 2021-10-04T12:34:22 | E6: صلاحيه مرافق | F6: م احمد طلبه | G6: 550 | H6: 550 | I6: 0 | P6: 1000 | Q6: 2021-09-27 | R6: احمد لبده من حساب 5 شهادات صلاحيه
B7: جواده عطيه موسى محمد | C7: الحجايزة - السنبلاوين | D7: 2021-10-05T09:37:27 | E7: صلاحيه مرافق | F7: م احمد حسن - الحجايزه | G7: 550 | H7: 550 | I7: 0 | P7: 5000 | Q7: 2021-10-03 | R7: مهندس عبد اللطيف من 7150
B8: حسام الدين احمد محمد دويدار | C8: طنباره - السنبلاوين | D8: 2021-10-11T12:30:32 | E8: صلاحيه مرافق | F8: مكتب | G8: 550 | H8: 550 | I8: 0 | P8: 2500 | Q8: 2021-10-18 | R8: مهندس إبراهيم مصباح
B9: مسجد الأربعين - ميت غراب | C9: ميت غراب - السنبلاوين | D9: 2021-10-11T13:30:18 | E9: تقرير ترميم | F9: م ايه صبحي | G9: 450 | H9: 450 | I9: 0
B10: صلاح يوسف محمد | C10: ميت غراب - السنبلاوين | D10: 2021-10-05T12:39:18 | E10: اشراف هدم | F10: م محمد عزت صالح | G10: 850 | H10: 850 | I10: 0
B11: عواد ( مصنع تشكيل معادن ) | C11: السنبلاوين | D11: 2021-10-10T11:56:39 | E11: تقرير استشاري كهرباء | F11: مكتب | G11: 1000 | H11: 1000 | I11: 0
B12: احمد محمد عيسى عبد الفتاح | C12: كفر الروك - السنبلاوين | D12: 2021-10-10T12:05:13 | E12: دفع صلاحيه تخطيطيه | F12: مكتب | G12: 400 | H12: 400 | I12: 0
B13: مصطفى عبد الجواد الغندور | C13: طنبول الكبرى - السنبلاوين | D13: 2021-10-10T12:05:44 | E13: دفع صلاحيه تخطيطيه | F13: مكتب | G13: 400 | H13: 400 | I13: 0
B14: وفائي سالم السيد | C14: طهواي - السنبلاوين | D14: 2021-10-10T12:34:55 | E14: صلاحيه مرافق | F14: ا / كمال | G14: 550 | H14: 550 | I14: 0
B15: البربري عبد الحفيظ ذكريا | C15: الزريقي - السنبلاوين | D15: 2021-10-11T11:50:40 | E15: دفع صلاحيه تخطيطيه | F15: مكتب | G15: 400 | H15: 400 | I15: 0
B16: شيماء محمد محمد علي | C16: طنبول الكبرى - السنبلاوين | D16: 2021-10-11T11:51:37 | E16: دفع صلاحيه تخطيطيه | F16: مكتب | G16: 400 | H16: 400 | I16: 0
B17: مدكور احمد مدكور | C17: الزهايرة - السنبلاوين | D17: 2021-10-11T11:52:01 | E17: دفع صلاحيه تخطيطيه | F17: احمد مدكور - مكتب | G17: 400 | I17: 400
B18: إبراهيم فرج محمد | C18: الحجايزة - السنبلاوين | D18: 2021-10-14T10:52:29 | E18: صلاحيه مرافق | F18: م احمد حسن - الحجايزه | G18: 550 | H18: 550 | I18: 0
B19: محمد حمدى مغازى بدران | C19: ميت غريطه - السنبلاوين | D19: 2021-10-17T13:44:40 | E19: تقرير تعليه | F19: م بشير | G19: 650 | H19: 650 | I19: 0
B20: اسماعيل السيد احمد المتولي | C20: كفر الصلاحات - بني عبيد | D20: 2021-10-17T13:45:09 | E20: تقرير تعليه | F20: م ايمان - تمي | G20: 650 | H20: 650 | I20: 0
B21: محمد ابو النصر محمد عبد العزيز | C21: كفر الصلاحات - بني عبيد | D21: 2021-10-17T13:45:17 | E21: تقرير تعليه | F21: م ايمان - تمي | G21: 650 | H21: 650 | I21: 0
B22: مغوري توفيق السيد | C22: برج النور العرب - السنبلاوين | D22: 2021-10-18T10:42:33 | E22: اشراف هدم | F22: ا / احمد جاد | G22: 850 | H22: 850 | I22: 0
B23: محمد عبد الناصر محمد موسى | C23: كفر بني سالم - السنبلاوين | D23: 2021-10-18T11:08:43 | E23: اشراف هدم | F23: م السيد مسعد | G23: 850 | H23: 850 | I23: 0
B24: احمد شوقي عبد العزيز محمد | C24: ميت غريطه - السنبلاوين | D24: 2021-10-20T09:56:58 | E24: اشراف هدم | F24: م بشير | G24: 850 | H24: 850 | I24: 0
B25: مها عطيه عبده طعيمه | C25: الحجايزه - السنبلاوين | D25: 2021-10-20T12:16:04 | E25: تقرير تعليه | F25: م احمد طلبه | G25: 650 | H25: 650 | I25: 0
B26: محمد السيد حسانين حسن | C26: ظفر - تمي الامديد | D26: 2021-10-24T11:37:33 | E26: تقرير تعليه | F26: م ايمان - تمي | G26: 650 | H26: 650 | I26: 0
B27: إبراهيم السيد سليمان | C27: عزبة علي ويده - ظفر - تمي الامديد | D27: 2021-10-24T11:37:59 | E27: تقرير تعليه | F27: م ايمان - تمي | G27: 650 | H27: 650 | I27: 0
B28: عبد الهادي إبراهيم عبد المجيد | C28: غزاله - السنبلاوين | D28: 2021-10-25T10:59:53 | E28: صلاحيه مرافق | F28: م إبراهيم قؤاد | G28: 550 | H28: 550 | I28: 0
B29: رضا محمد محمد احمد يوسف | C29: غزاله - السنبلاوين | D29: 2021-10-25T11:00:19 | E29: صلاحيه مرافق | F29: م إبراهيم قؤاد | G29: 550 | H29: 550 | I29: 0
B30: محمد علي محمد موسى | C30: الحجايزه - السنبلاوين | D30: 2021-10-25T11:00:47 | E30: صلاحيه مرافق | F30: م احمد طلبه | G30: 550 | H30: 550 | I30: 0
B31: حمدي رزق محمود سليمان | C31: طهواي - السنبلاوين | D31: 2021-10-25T11:07:45 | E31: دفع صلاحيه تخطيطيه | F31: ا كمال العطار | G31: 300 | H31: 300 | I31: 0
B32: هاني السعيد احمد العوضي | C32: الشعاله - السنبلاوين | D32: 2021-10-25T11:13:59 | E32: دفع قرار هدم | F32: ا كمال العطار | G32: 20 | H32: 20 | I32: 0
B33: هاني السعيد احمد العوضي | C33: الشعاله - السنبلاوين | D33: 2021-10-26T10:31:28 | E33: دفع للجنة | F33: ا كمال العطار | G33: 600 | H33: 600 | I33: 0
B34: عيسوي عبد العظيم | C34: طرانيس العرب - السنبلاوين | D34: 2021-10-27T10:15:34 | E34: وثيقه تامين | F34: م سمر | G34: 750 | H34: 750 | I34: 0
B35: مايسه السيد زكريا محمد | C35: برقين - السنبلاوين | D35: 2021-10-27T10:16:07 | E35: وثيقه تامين | F35: م سمر | G35: 700 | H35: 700 | I35: 0
B36: عبد الهادي مصطفى حجازي | C36: نوب طريف - السنبلاوين | D36: 2021-10-27T10:32:53 | E36: صلاحيه مرافق | F36: مكتب | G36: 550 | H36: 550 | I36: 0
B37: عبده إسماعيل على الجندي | C37: ديو الوسطى - السنبلاوين | D37: 2021-10-27T11:08:39 | E37: صلاحيه مرافق | F37: مكتب | G37: 550 | H37: 550 | I37: 0
B38: عزيزه سالم إسماعيل | C38: الزهايره - السنبلاوين | D38: 2021-10-27T12:29:20 | E38: شهاده اشراف | F38: مكتب | G38: 1500 | H38: 1500 | I38: 0
B39: خالد عبد الفتاح علي | C39: الحجايزه - السنبلاوين | D39: 2021-10-31T15:16:28 | E39: اشراف هدم | F39: م اميرة يوسف | G39: 650 | H39: 650 | I39: 0
B40: جيهان توفيق على طعيمه | C40: الحجايزه - السنبلاوين | D40: 2021-10-31T15:17:03 | E40: اشراف هدم | F40: م اميرة يوسف | G40: 650 | H40: 650 | I40: 0
B41: ناديه حسن مصطفى حسن | C41: طهواي - السنبلاوين | D41: 2021-10-31T15:36:54 | E41: تقرير تعليه | F41: م إبراهيم مصباح | G41: 650 | H41: 650 | I41: 0
D42: 2021-11-08T11:15:54
G43: =SUM(G2:G42) -> 25420 | H43: =SUM(H2:H42) -> 25020 | I43: =SUM(I2:I42) -> 400

Sheet شهر 9
A1: الرقم | B1: الاســـــــــــــم | C1: العنوان | D1: التاريخ | E1: نوع العمليه | F1: العميل | G1: المبلغ | H1: المدفوع | I1: الباقي | K1: =G43 -> 33890 | M1: الباقي | N1: =I43 -> 0 | P1: الوارد
B2: اسمهان محمد إبراهيم علي | C2: البشنيني | D2: 2021-09-13T10:38:07 | E2: صلاحيه مرافق | F2: احمد جاد | G2: 550 | H2: 550 | I2: =G2-H2 -> 0 | P2: المبلغ | Q2: التاريخ | R2: الاسم
B3: السعيد السيد السعيد | C3: الحجايزة | E3: اشراف هدم | F3: إبراهيم فؤاد | G3: 800 | H3: 800 | I3: =G3-H3 -> 0 | P3: 2500 | Q3: 2021-09-20 | R3: مهندس حسن من الحساب
B4: خالد محمد الهادي | C4: نوب طريف | E4: اشراف هدم | F4: مكتب | G4: 800 | H4: 800 | I4: 0 | P4: 700 | Q4: 2021-09-22 | R4: إبراهيم مصباح سداد مديونيه - سلفيات
B5: سعديه عوض إسماعيل | C5: سعد الدين | E5: اشراف | F5: عبد اللطيف | G5: 1500 | H5: 1500 | I5: 0 | P5: 500 | Q5: 2021-09-26 | R5: مديونيه قديمه (باقي 1000) كمال العطار
B6: سماسم مصطفى محمد | C6: شبراهور | E6: اشراف | F6: عبد اللطيف | G6: 1500 | H6: 1500 | I6: 0 | P6: 1000 | Q6: 2021-09-27 | R6: احمد لبده من حساب 5 شهادات صلاحيه
B7: محمود عبد الله عبد السلام | C7: القاسمي | D7: 2021-09-13T10:37:19 | E7: اشراف | F7: إبراهيم الجدامي | G7: 1450 | H7: 1450 | I7: 0 | R7: 2021-09-30
B8: خضر محمد خضر محمد | C8: كفر عزام | E8: تقرير تعليه | F8: مي مكتب | G8: 650 | H8: 650 | I8: 0
B9: إبراهيم محمد خضر | C9: كفر عزام | E9: تقرير تعليه | F9: مي مكتب | G9: 650 | H9: 650 | I9: 0
B10: خليل جاد الحق عطا | C10: الصلاحات - بني عبيد | D10: 2021-09-13T10:37:11 | E10: تقرير تعليه | F10: ايمان - تمي | G10: 650 | H10: 650 | I10: 0
B11: رزق رمضان رزق | C11: التمد الحجر - السنبلاوين | D11: 2021-09-20T09:28:28 | E11: مرافق | F11: مكتب | G11: 550 | H11: 550 | I11: 0
B12: صلاح يوسف سالم يوسف | C12: منشاة عزت - السنبلاوين | D12: 2021-09-20T09:29:50 | E12: مرافق | F12: سمر | G12: 530 | H12: 530 | I12: 0
B13: رضا صالح عثمان بسيوني | C13: منشاة عزت - السنبلاوين | D13: 2021-09-20T09:30:21 | E13: مرافق | F13: سمر | G13: 530 | H13: 530 | I13: 0
B14: رضا محمد علي الجندي | C14: منشاة عزت - السنبلاوين | D14: 2021-09-20T09:30:34 | E14: مرافق | F14: سمر | G14: 530 | H14: 530 | I14: 0
B15: الشحات محمد عبد العزيز | C15: منشاة الاخوة - اجا | D15: 2021-09-20T09:30:53 | E15: مرافق | F15: ضياء | G15: 550 | H15: 550 | I15: 0
B16: ورثة المتولي أبو إبراهيم | C16: منشاة الاخوة - اجا | D16: 2021-09-20T09:31:16 | E16: مرافق | F16: ضياء | G16: 550 | H16: 550 | I16: 0
B17: سعد محمد السعيد | C17: أبو داود - تمي الامديد | D17: 2021-09-20T16:21:48 | E17: تقرير تعليه | F17: مكتب | G17: 650 | H17: 650 | I17: 0
B18: هاني محمد عبد الفتاح السيد | C18: بشمس - السنبلاوين | D18: 2021-09-22T11:29:33 | E18: تقرير تعليه | F18: مكتب | G18: 650 | H18: 650 | I18: 0
B19: محمد علي خطاب علي | C19: طرانيس - السنبلاوين | D19: 2021-09-22T11:30:31 | E19: تقرير تعليه و تعديل | F19: سمر | G19: 600 | H19: 600 | I19: 0
B20: نورة العشماوي فرحات | C20: كفر الشهيد مصطفى حموده - السنبلاوين | D20: 2021-09-22T11:31:35 | E20: اشراف هدم | F20: اسلام نافع | G20: 850 | H20: 850 | I20: 0
B21: فايقه عبد العزيز احمد إبراهيم | C21: الرمزيه - السنبلاوين | D21: 2021-09-22T12:16:45 | E21: اشراف هدم | F21: مكتب | G21: 850 | H21: 850 | I21: 0
B22: احمد محمد حسن | C22: عزبه مناع - برقين - السنبلاوين | D22: 2021-09-22T12:49:30 | E22: وثيقه تأمين | F22: سمر | G22: 800 | H22: 800 | I22: 0
B23: عمر كمال فضل احمد | C23: طهواي - السنبلاوين | D23: 2021-09-22T12:50:16 | E23: وثيقه تأمين | F23: كمال طهواي | G23: 950 | H23: 950 | I23: 0
B24: مها عطيه عبده طعيمه | C24: الحجايزه - السنبلاوين | D24: 2021-09-26T09:02:14 | E24: وثيقه تأمين | F24: احمد طلبه | G24: 750 | H24: 750 | I24: 0
B25: فوزي السعيد عطوه حسني | C25: طرانيس العرب - السنبلاوين | D25: 2021-09-26T09:02:58 | E25: وثيقه تأمين | F25: سمر | G25: 800 | H25: 800 | I25: 0
B26: محمد السيد عوض حسن | C26: الصلاحات - بني عبيد | D26: 2021-09-26T09:07:20 | E26: وثيقه تأمين | F26: ايمان - تمي | G26: 800 | H26: 800 | I26: 0
B27: سومه يوسف محمد عبد المجيد | C27: طهواي - السنبلاوين | D27: 2021-09-26T13:49:22 | E27: مرافق | F27: كمال طهواي | G27: 550 | H27: 550 | I27: 0
B28: سعد محمد السعيد | C28: أبو داود - تمي الامديد | D28: 2021-09-26T13:56:47 | E28: اشراف انشاء | F28: مكتب | G28: 1500 | H28: 1500 | I28: 0
B29: دعاء توفيق عبد العزيز | C29: أبو داود - تمي الامديد | D29: 2021-09-26T13:57:36 | E29: اشراف انشاء | F29: م وليد مكتب | G29: 1500 | H29: 1500 | I29: 0
B30: دعاء محمد عرفات جاد | C30: قرقيره - السنبلاوين | D30: 2021-09-27T13:02:32 | E30: صلاحيه مرافق | F30: احمد لبده | G30: 550 | H30: 550 | I30: 0 | J30: مدفوع 1500
B31: عماد احمد محمد احمد | C31: مبارك - السنبلاوين | D31: 2021-09-27T13:05:04 | E31: صلاحيه مرافق | F31: احمد لبده | G31: 550 | H31: 550 | I31: 0
B32: رأيفه عبد اللطيف عبد العزيز | C32: قرقيره - السنبلاوين | D32: 2021-09-27T13:05:44 | E32: صلاحيه مرافق | F32: احمد لبده | G32: 550 | H32: 550 | I32: 0
B33: مجدي محمد عبد الجليل البوشي | C33: قرقيره - السنبلاوين | D33: 2021-09-27T13:06:18 | E33: صلاحيه مرافق | F33: احمد لبده | G33: 550 | H33: 550 | I33: 0
B34: محمد صلاح الدين عكاشه | C34: قرقيره - السنبلاوين | D34: 2021-09-27T13:06:43 | E34: صلاحيه مرافق | F34: احمد لبده | G34: 550 | H34: 550 | I34: 0
B35: احمد محمد حسن احمد | C35: عزبه مناع - برقين - السنبلاوين | D35: 2021-09-27T13:07:27 | E35: تقرير تعليه | F35: سمر | G35: 600 | H35: 600 | I35: 0
B36: محمد يوسف علي محمد | C36: نوب طريف - السنبلاوين | D36: 2021-09-28T14:53:35 | E36: تقرير تعليه | F36: مكتب | G36: 650 | H36: 650 | I36: 0
B37: محمد يوسف علي محمد | C37: نوب طريف - السنبلاوين | D37: 2021-09-28T14:54:30 | E37: شهاده اشراف | F37: مكتب | G37: 1500 | H37: 1500 | I37: 0
B38: إبراهيم السيد محمد هلال | C38: شبراهور - السنبلاوين | D38: 2021-09-28T14:54:54 | E38: تقرير تعليه و تعديل | F38: مكتب | G38: 900 | H38: 900 | I38: 0
B39: إبراهيم السيد محمد هلال | C39: شبراهور - السنبلاوين | D39: 2021-09-28T14:55:24 | E39: شهاده اشراف | F39: مكتب | G39: 1800 | H39: 1800 | I39: 0
B40: حماد محمد السيد علي | C40: شبراهور - السنبلاوين | D40: 2021-09-28T14:57:15 | E40: تقرير تعليه | F40: مكتب | G40: 1500 | H40: 1500 | I40: 0
B41: حماد محمد السيد علي | C41: شبراهور - السنبلاوين | D41: 2021-09-28T14:57:30 | E41: شهاده اشراف | F41: مكتب | G41: 650 | H41: 650 | I41: 0
B42: اسلام نافع | C42: قرقيره - السنبلاوين | D42: 2021-09-30T13:02:11 | E42: سلفيات | F42: اسلام نافع | G42: 500 | H42: 500 | I42: 0
G43: =SUM(G2:G42) -> 33890 | H43: =SUM(H2:H42) -> 33890 | I43: =SUM(I2:I42) -> 0

Sheet M Ezat
A1: الرقم | B1: الاســـــــــــــم | C1: العنوان | D1: التاريخ | E1: نوع العمليه | F1: الحركه | G1: المبلغ | H1: المدفوع | I1: الباقي | K1: =G58 -> 12760 | M1: الباقي | N1: =K1-P28 -> 7510 | P1: الوارد
B2: أنور سالم عبد الفتاح | C2: الروضه - السنبلاوين | D2: 2021-09-28T13:21:34 | E2: صلاحيه تخطيطيه | F2: اسطوانه | G2: 20 | P2: المبلغ | Q2: التاريخ | R2: الاسم
B3: أنور سالم عبد الفتاح | C3: الروضه - السنبلاوين | D3: 2021-09-28T13:21:08 | E3: صلاحيه تخطيطيه | F3: توريد خزنه | G3: 400 | P3: 2000 | Q3: 2021-10-06 | R3: وارد بيد يوسف
B4: أنور سالم عبد الفتاح 2 | C4: الروضه - السنبلاوين | D4: 2021-09-28T13:21:45 | E4: صلاحيه تخطيطيه | F4: اسطوانه | G4: 20 | P4: 1000 | Q4: 2021-10-06 | R4: من توريد الفيزا
B5: أنور سالم عبد الفتاح 2 | C5: الروضه - السنبلاوين | D5: 2021-09-28T13:21:48 | E5: صلاحيه تخطيطيه | F5: توريد خزنه | G5: 400 | P5: 850 | Q5: 2021-10-17 | R5: دفع 3 صلاحيات للمكتب
B6: عبد العزيز جوده | C6: كفر ميت غراب - السنبلاوين | D6: 2021-09-28T13:22:20 | E6: صلاحيه تخطيطيه | F6: اسطوانه | G6: 20 | P6: 400 | Q6: 2021-10-17 | R6: خصم من مدفوعات ميرنا
B7: امينة مصطفى حسن | C7: كفر ميت غراب - السنبلاوين | D7: 2021-09-28T13:23:04 | E7: صلاحيه تخطيطيه | F7: توريد خزنه | G7: 400 | P7: 1000 | Q7: 2021-11-07 | R7: بيد مهندس محمد
B8: عصام محمود عقل | C8: ميت غراب - السنبلاوين | D8: 2021-09-28T13:24:39 | E8: صلاحيه تخطيطيه | F8: توريد خزنه | G8: 400
B9: محمود وهاله محمود محمد | C9: ميت غراب - السنبلاوين | D9: 2021-09-28T13:25:04 | E9: صلاحيه تخطيطيه | F9: اسطوانه | G9: 20
B10: الشحات محمد محمد معتوق | C10: ميت غراب - السنبلاوين | D10: 2022-01-05T10:45:54 | E10: صلاحيه تخطيطيه | F10: توريد خزنه | G10: 400
B11: بهية عبد المقصود السيد | C11: شبراهور - السنبلاوين | D11: 2021-10-03T10:49:52 | E11: صلاحيه تخطيطيه | F11: توريد خزنه | G11: 400
B12: علي محمود محمد | C12: ميت غراب - السنبلاوين | D12: 2021-10-03T10:50:28 | E12: صلاحيه تخطيطيه | F12: توريد خزنه | G12: 400
B13: اكراميات خزمه | C13: ميت غراب - السنبلاوين | D13: 2021-10-04T12:15:12 | E13: دفع تصالح | F13: اكراميات | G13: 20
B14: صلاح يوسف محمد | C14: ميت غراب - السنبلاوين | D14: 2021-10-05T12:39:42 | E14: اشراف هدم | F14: نقابه المهندسين | G14: 850
B15: مصطفى علي احمد منصور | C15: كفر طنبول الكبرى - السنبلاوين | D15: 2021-10-06T10:59:06 | E15: ختم خريطه | F15: ختم | G15: 20
B16: احمد محمد طارق | C16: ميت غراب - السنبلاوين | D16: 2021-10-06T10:59:56 | E16: ختم خريطه | F16: ختم | G16: 20
B17: محمود راضي محمود محمد | C17: سعد الدين - السنبلاوين | D17: 2021-10-13T12:02:55 | E17: صلاحيه تخطيطيه | F17: توريد خزنه وتسجيل | G17: 300
B18: احمد رمضان طه رمضان | C18: ميت غراب - السنبلاوين | D18: 2021-10-13T12:03:27 | E18: صلاحيه تخطيطيه | F18: توريد خزنه وتسجيل | G18: 300
B19: حكيم السعيد عبد الحميد | C19: ميت غراب - السنبلاوين | D19: 2021-10-13T12:03:58 | E19: صلاحيه تخطيطيه | F19: توريد خزنه وتسجيل | G19: 300
B20: إبراهيم الامام يوسف مجاهد | C20: ميت غراب - السنبلاوين | D20: 2021-10-13T12:04:44 | E20: صلاحيه تخطيطيه | F20: توريد خزنه وتسجيل | G20: 300
B21: علي محمود محمد | C21: ميت غراب - السنبلاوين | D21: 2021-11-07T13:18:21 | E21: نهايه خدمه | G21: 100
B22: نماذج هدم | C22: مجلس المدينه | D22: 2021-11-08T12:30:00 | E22: عدد 4 نماذج | G22: 40
B23: طباعه صلاحيه هاشم | C23: مجلس المدينه | D23: 2021-11-14T10:24:26 | E23: اكراميات | F23: اكرامي | G23: 100
B24: نموذج 3 | D24: 2021-11-24T15:37:19 | E24: مجلس | G24: 570
B25: عثمان فرحات محمد أبو النجا | C25: ميت غراب - السنبلاوين | D25: 2021-11-29T08:02:41 | E25: تصالح | F25: امر دفع | G25: 150
B26: محمد عبد العزيز إبراهيم الدقله | C26: ميت غراب - السنبلاوين | D26: 2021-11-29T08:03:10 | E26: تصالح | F26: امر دفع | G26: 150
B27: ملف هدم فاطمه | C27: ميت غراب - السنبلاوين | D27: 2021-11-29T08:03:39 | E27: ترخيص هدم | F27: تجهيز وتسجيل | G27: 500
B28: علي محمود محمد علي كل | C28: ميت غراب - السنبلاوين | D28: 2021-11-29T15:22:22 | E28: تقرير تعليه | F28: نقابه المهندسين | G28: 650 | P28: =SUM(P3:P27) -> 5250
B29: سالي السعيد عبد الحميد السيد | C29: ميت غراب - السنبلاوين | D29: 2021-12-06T09:58:01 | E29: تسجيل صلاحيه | F29: مركز تكنولوجي | G29: 300
B30: علاء و عبد الباسط رمضان العدوي | C30: شبراهور - السنبلاوين | D30: 2021-12-06T09:58:53 | E30: تسجيل صلاحيه | F30: مركز تكنولوجي | G30: 300
B31: هالة و محمود | C31: ميت غراب - السنبلاوين | D31: 2021-12-09T13:30:52 | E31: طباعه وتعديل | F31: اكرامي | G31: 100
B32: إبراهيم الامام يوسف مجاهد | C32: ميت غراب - السنبلاوين | D32: 2021-12-12T12:00:59 | E32: نهايه خدمه | F32: اكرامي | G32: 150
B33: عبد العزيز جوده | C33: كفر ميت غراب - السنبلاوين | D33: 2021-12-12T12:01:53 | E33: نهايه خدمه | F33: اكرامي | G33: 150
B34: علي محمد كل | C34: ميت غراب - السنبلاوين | D34: 2021-12-13T11:13:02 | E34: تسجيل ملف | F34: مركز تكنولوجي | G34: 10
B35: فاطمه عثمان فرحات | C35: ميت غراب - السنبلاوين | D35: 2021-12-16T16:12:30 | E35: تسجيل ملف | F35: مركز تكنولوجي | G35: 300
B36: محمد سلامه سليمان | C36: ميت غراب - السنبلاوين | D36: 2021-12-16T16:13:27 | E36: تسجيل ملف | F36: مركز تكنولوجي | G36: 300
B37: علي حسين المرسي الحزين | C37: ميت غراب - السنبلاوين | D37: 2021-12-19T15:18:09 | E37: تسجيل ملف | F37: مركز تكنولوجي | G37: 300
B38: حسن عيد حسن فرج الله | C38: كفر ميت غراب - السنبلاوين | D38: 2021-12-19T15:18:32 | E38: تسجيل ملف | F38: مركز تكنولوجي | G38: 300
B39: مهدي عبد الفتاح محمد | C39: ميت غراب - السنبلاوين | D39: 2021-12-19T15:18:52 | E39: تسجيل ملف | F39: مركز تكنولوجي | G39: 300
B40: عبد السلام فؤاد عبد السلام | C40: ميت غراب - السنبلاوين | D40: 2021-12-19T15:19:10 | E40: تسجيل ملف | F40: مركز تكنولوجي | G40: 300
B41: شاكر عبد الله احمد عبد الله | C41: الروضه - السنبلاوين | D41: 2021-12-19T15:19:29 | E41: تسجيل ملف | F41: مركز تكنولوجي | G41: 300
B42: السيد عبد الله محمد | C42: الروضه - السنبلاوين | D42: 2021-12-19T15:19:49 | E42: تسجيل ملف | F42: مركز تكنولوجي | G42: 300
B43: عراقي حسن عبد الله | C43: ميت غراب - السنبلاوين | D43: 2021-12-28T13:52:36 | E43: تسجيل ملف | F43: مركز تكنولوجي | G43: 300
B44: محمود إبراهيم حسن مجاهد | C44: ميت غراب - السنبلاوين | D44: 2021-12-28T13:53:17 | E44: تسجيل ملف | F44: مركز تكنولوجي | G44: 300
B45: عمل 3 أسطوانات | C45: مكتب | D45: 2021-12-28T13:53:43 | E45: عمل أسطوانات | F45: مركز تكنولوجي | G45: 60
B46: هاله ومحمود | C46: ميت غراب - السنبلاوين | D46: 2021-12-30T11:36:08 | E46: تبرع | F46: مجلس | G46: 150
B47: عبد العزيز جوده | C47: كفر ميت غراب - السنبلاوين | D47: 2022-01-05T10:19:46 | E47: تقرير تعليه | F47: نقابه المهندسين | G47: 650
B48: مرفت حمدي السيد علي | C48: كفر سالم - السنبلاوين | D48: 2022-01-05T11:03:55 | E48: ملف هدم - لجنه | F48: مركز تكنولوجي | G48: 40
B49: سهام علي عباس | C49: ميت غراب - السنبلاوين | D49: 2022-01-05T13:52:54 | E49: تسجيل صلاحيه | F49: مركز تكنولوجي | G49: 0
B50: علي محمود كل | C50: ميت غراب - السنبلاوين | D50: 2022-01-05T13:54:48 | E50: نهايه خدمه | F50: مركز تكنولوجي | G50: 200
B51: علي محمود كل | C51: ميت غراب - السنبلاوين | D51: 2022-01-05T13:59:32 | E51: اداره | F51: مجلس | G51: 400
G58: =SUM(G2:G57) -> 12760 | H58: =SUM(H6:H42) -> 0 | I58: =SUM(I2:I42) -> 0
